Cogmind - Beta 15 @@@ ROGUE MODE // 2025.05.08 @ 00:12:48 Player: Darcyisverycute Result: Destroyed by S-27 Virus with Autogun Performance ------------- Evolutions (5) 2500 Regions Visited (13) 2600 Robots Destroyed (140) 700 Value Destroyed (5331) 5331 Prototype IDs (19) 380 Alien Tech Used (0) 0 Bonus (3891) 3891 TOTAL SCORE: 15402 Bonus ------- High Alert Combat Kills 1217 Follower Combat Kills 1721 Registered with UFD 300 Met Optimus in HQ 500 Built Enhanced Grunts 300 Friendly Fire -147 Cogmind --------- Core Integrity 0/1000 Matter 114/300 Energy 600/600 System Corruption 7% Temperature Cool (0) Movement Treading (240) Ox1 Location -5/Cetus Parts ------- > --- POWER (2) -------- Quantum Reactor Quantum Reactor > --- PROPULSION (5) --- Centrium Heavy Treads Improved Hover Unit > --- UTILITY (8) ------ High-capacity Storage Unit Visual Processing Unit Makeshift Salvage Targeting Computer Advanced Targeting Computer Improved Target Analyzer Centrium Medium Armor Plating Centrium Medium Armor Plating Centrium Medium Armor Plating > --- WEAPON (2) ------- Advanced Variable Charge Gun Advanced KE Penetrator > --- INVENTORY (20) --- Quantum Reactor Power Amplifier Advanced Heat Sink Medium Storage Unit Large Storage Unit Advanced Energy Well (500) Advanced Energy Well (500) Surveybot 17 Chip Long-range Tractor Beam Wave Gun Advanced Variable Charge Gun Advanced Variable Charge Gun Improved Remote Datajack Plasma Cutter CPS Tube (2) Peak State ------------ > --- POWER ------------ Quantum Reactor Quantum Reactor > --- PROPULSION ------- Centrium Heavy Treads Improved Hover Unit > --- UTILITY ---------- High-capacity Storage Unit Visual Processing Unit Makeshift Salvage Targeting Computer Advanced Targeting Computer Improved Target Analyzer Centrium Medium Armor Plating Centrium Medium Armor Plating Centrium Medium Armor Plating > --- WEAPON ----------- Advanced Variable Charge Gun Advanced KE Penetrator > --- INVENTORY -------- Quantum Reactor Power Amplifier Medium Storage Unit Large Storage Unit Advanced Energy Well Advanced Energy Well Surveybot 17 Chip Long-range Tractor Beam Advanced Drone Bay Wave Gun Advanced Variable Charge Gun Advanced Variable Charge Gun Improved Remote Datajack Plasma Cutter CPS Tube [Rating: 105] Favorites ----------- Power Meta Core Engine Light Angular Momentum Engine Power Core Meta Core Reactor Quantum Reactor Propulsion Subdweller Monowheel Treads Light Treads Leg Armored Leg Wheel Subdweller Monowheel Hover Unit Improved Hover Unit Utility Large Storage Unit Device Improved Sensor Array Storage Large Storage Unit Processor Core Analyzer Hackware Hacking Suite Protection Makeshift Light Armor Plating Weapon Companion Sword Energy Gun Advanced Variable Charge Gun Ballistic Gun Gauss Rifle Ballistic Cannon Mass Driver Launcher Rocket Launcher Impact Weapon Hammer Slashing Weapon Companion Sword Build | -11 -10 -10 -10 -8 -8 -6 -6 -6 -6 -5 -5 -5 -5 ------- Run | Yrd Mat Min Sub Rec Scr Fac Low Low Zio Pro Fac Ext Cet Slots Evolved 10 | . . . . . . 8 . . . . 2 . . Power 1 | . . . . . . 1 . . . . . . . Propulsion 3 | . . . . . . 2 . . . . 1 . . Utility 6 | . . . . . . 5 . . . . 1 . . Weapon . | . . . . . . . . . . . . . . Parts Attached 148 | 7 5 4 18 2 5 24 3 2 . 4 35 24 15 Power 19 | 1 1 . 2 . . 1 . 1 . 1 5 5 2 Engine 8 | 1 1 . 1 . . 1 . . . 1 2 1 . Core 8 | . . . 1 . . . . 1 . . 2 4 . Reactor 3 | . . . . . . . . . . . 1 . 2 Propulsion 47 | 2 2 1 7 1 1 8 . . . 1 13 9 2 Treads 7 | 2 1 . . 1 . . . . . . . 2 1 Leg 28 | . . . . . 1 8 . . . 1 12 6 . Wheel 10 | . 1 1 7 . . . . . . . . 1 . Hover 2 | . . . . . . . . . . . 1 . 1 Flight . | . . . . . . . . . . . . . . Utility 54 | 2 . 1 3 1 2 15 3 1 . 2 12 5 7 Device 20 | 1 . . 1 . . 5 1 . . 2 8 . 2 Storage 5 | 1 . 1 . . 1 . . . . . . 2 . Processor 13 | . . . . . . 5 1 . . . 4 2 1 Hackware 1 | . . . . . . . . 1 . . . . . Protection 15 | . . . 2 1 1 5 1 . . . . 1 4 Artifact . | . . . . . . . . . . . . . . Weapon 28 | 2 2 2 6 . 2 . . . . . 5 5 4 Energy Gun 7 | 1 . . 1 . . . . . . . 2 1 2 Energy Cannon . | . . . . . . . . . . . . . . Ballistic Gun 7 | 1 . . 2 . . . . . . . 2 . 2 Ballistic Cannon 6 | . 1 . . . . . . . . . 1 4 . Launcher 4 | . 1 1 2 . . . . . . . . . . Special Weapon . | . . . . . . . . . . . . . . Impact Weapon 1 | . . 1 . . . . . . . . . . . Slashing Weapon 3 | . . . 1 . 2 . . . . . . . . Piercing Weapon . | . . . . . . . . . . . . . . Special Melee Weapon . | . . . . . . . . . . . . . . Unidentified Prototypes 8 | . . . . . 1 1 1 . . . . 1 4 Parts Lost 56 | . 1 1 7 . . 5 1 1 . 1 21 6 12 Power 8 | . . . 1 . . 1 . . . . 4 1 1 Propulsion 21 | . . . 3 . . 1 . . . . 9 2 6 Utility 17 | . . . 1 . . 3 1 1 . 1 7 1 2 Weapon 10 | . 1 1 2 . . . . . . . 1 2 3 Highest Loss Streak 18 | . 1 1 3 . . 3 1 1 . 1 18 3 12 To Critical Strikes 3 | . . . 1 . . . . . . . . . 2 Average Backups 11 | 2 6 7 7 9 10 13 13 13 14 13 13 15 12 Power . | . 1 1 . 1 . . . . . . . . . Propulsion 1 | 1 1 1 . . . 1 3 3 3 3 1 1 . Utility 5 | . 1 1 1 3 4 7 7 8 8 7 8 8 7 Weapon 2 | . 2 4 4 5 3 1 1 . 1 1 1 3 2 Tool/Special . | . . . . . . . . . . . . . . Unused Backups 31 | . 2 . 2 . 5 5 3 . . . 2 2 10 Power 2 | . . . . . 1 . . . . . . . 1 Propulsion 2 | . . . . . . 2 . . . . . . . Utility 14 | . . . 1 . 1 1 3 . . . 2 2 4 Weapon 7 | . 2 . 1 . 2 . . . . . . . 2 Tool/Special 6 | . . . . . 1 2 . . . . . . 3 Average Slot Usage (%) 85 | . 97 100 78 88 79 88 85 90 93 92 90 95 76 Engine 2 | . 13 14 3 . . 3 . . . 5 3 . . Core 7 | . . . 4 11 11 6 6 10 12 6 3 9 1 Treads 5 | . 24 14 1 10 11 1 . . . . . 3 4 Leg 11 | . . . . . 3 19 25 25 25 25 27 19 1 Wheel 9 | . 2 14 21 22 13 7 6 6 6 6 . 2 . Device 6 | . 14 14 8 . . 12 12 9 6 10 12 8 1 Storage 7 | . 14 14 8 11 11 6 6 6 6 6 5 5 4 Processor 8 | . . . . . . 14 15 18 18 18 14 15 21 Hackware 1 | . . . . . . . . 1 6 6 5 5 . Protection 7 | . . . 3 11 10 6 7 6 6 1 3 7 14 Ballistic Gun 1 | . 11 . 4 . . . . . . . 1 2 3 Ballistic Cannon 1 | . 4 13 1 . . . . . . . 1 6 1 Launcher 1 | . 2 14 8 . . . . . . . . . . Impact Weapon 1 | . . . 4 10 1 . . . . . . . . Slashing Weapon 6 | . . . 6 11 14 6 6 6 6 6 2 . . Peak Build Rating 105 | 7 10 10 32 32 34 74 74 79 77 79 85 85 105 Average Rating 49 | 5 7 9 16 30 31 63 70 75 77 76 71 77 89 On Entrance 45 | . 7 10 10 32 30 30 69 71 77 77 76 80 71 Naked Turns . | . . . . . . . . . . . . . . Heaviest Build 112 | 14 20 25 32 39 40 51 50 54 49 55 70 93 112 Greatest Support 85 | 40 40 10 60 60 20 65 64 64 64 64 85 85 80 Greatest Overweight (x) 7 | 1 1 2 7 1 1 1 . . . . 2 2 1 Average Overweight (x) . | . . 1 . . . . . . . . . . . Largest Inventory Capacity 20 | 8 8 10 10 10 15 15 15 15 15 15 15 20 20 Average Capacity 13 | 7 8 8 8 10 11 15 15 15 15 15 15 17 18 Most Carried 20 | 5 8 9 10 10 15 15 15 15 15 15 15 20 18 Average Carried 12 | 2 6 7 7 9 11 14 14 14 15 13 13 16 13 Final Capacity 20 | 8 8 10 10 10 15 15 15 15 15 15 15 20 20 Final Carried 19 | 5 8 9 10 10 15 15 15 15 15 13 15 19 15 Class Distribution -------------------- 51% | Mutant 20% | Scavenger-Mutant 9% | Commander-Mutant 8% | Derelict-Mutant 8% | Subdweller-Mutant Dominant Class ---------------- Mutant | -10/Materials Mutant | -10/Mines Mutant | -10/Subcaves Subdweller-Mutant | -8/Recycling Mutant | -8/Scraptown Scavenger-Mutant | -6/Factory Mutant | -6/Lower Caves Mutant | -6/Lower Caves Derelict-Mutant | -6/Zion Derelict-Mutant | -5/Proximity Caves Scavenger-Mutant | -5/Factory Commander-Mutant | -5/Extension Scavenger-Mutant | -5/Cetus Resources | -11 -10 -10 -10 -8 -8 -6 -6 -6 -6 -5 -5 -5 -5 ----------- Run | Yrd Mat Min Sub Rec Scr Fac Low Low Zio Pro Fac Ext Cet Matter Collected 4899 | 275 35 360 876 103 40 416 64 101 . 51 674 1546 358 Remotely 920 | . . . . . . . . . . . 91 706 123 Salvage Created 6122 | 116 116 225 411 497 . 954 445 210 . 124 1503 1211 310 Parts 293 | 8 8 15 35 16 . 48 10 8 . 6 77 44 18 Haulers Intercepted 1 | . . . . . . . . . . . . 1 . Recyclers Shooed 8 | . . 1 . 1 . 1 . . . . 2 3 . Parts Field Recycled . | . . . . . . . . . . . . . . Retrieved Matter . | . . . . . . . . . . . . . . Parts Self-Destructed 54 | . . . 18 . . . 4 . . 32 . . . Prevented . | . . . . . . . . . . . . . . Kills | -11 -10 -10 -10 -8 -8 -6 -6 -6 -6 -5 -5 -5 -5 ------- Run | Yrd Mat Min Sub Rec Scr Fac Low Low Zio Pro Fac Ext Cet Combat Hostiles Destroyed 103 | . 3 6 18 2 . 15 5 4 . 2 27 17 4 Melee 37 | . . . 3 2 . 11 5 . . 2 14 . . Guns 19 | . 1 . 5 . . . . . . . 7 2 4 Cannons 19 | . 2 2 . . . . . . . . . 15 . AOE 28 | . . 4 10 . . 4 . 4 . . 6 . . Classes Destroyed 19 | 2 2 2 3 . . 3 1 . . . 2 4 . Worker 8 | . . 2 . . . 5 . . . . 1 . . Builder 8 | . 1 . . . . 2 . . . . 4 1 . Tunneler 4 | 1 . 1 . . . . . . . . 1 1 . Hauler 1 | . . . . . . . . . . . . 1 . Recycler 10 | 1 . 1 . 4 . 1 . . . . 2 1 . Operator 1 | . . . . . . . . . . . . 1 . Drone 1 | . . . . . . . . . . . 1 . . Turret 2 | . . . 2 . . . . . . . . . . Watcher 3 | . . . . . . 1 . . . . . 1 1 Swarmer 20 | . . . 6 . . 4 1 4 . . 5 . . Grunt 43 | . 3 4 2 . . 9 2 . . 2 12 9 . Brawler 2 | . . . . . . 1 1 . . . . . . Duelist 1 | . . . . . . . . . . . . 1 . Sentry 11 | . . 2 1 2 . . 1 . . . 3 2 . Hunter 2 | . . . . . . . . . . . 2 . . Programmer 5 | . . . . . . 1 . . . . 4 . . Behemoth 2 | . . . . . . . . . . . . 2 . Cetus Guard 4 | . . . . . . . . . . . . . 4 Subdweller 9 | . . . 9 . . . . . . . . . . Samaritan 7 | . . . . . . . 3 4 . . . . . Thug 2 | . . . . . . . . . . . . 2 . Savage 1 | . . . . . . . . . . . . 1 . Butcher 1 | . . . . . . . . . . . . 1 . Best Kill Streak 10 | 1 3 6 3 2 . 6 5 4 . 2 10 6 2 Combat Bots Only 9 | . 2 2 3 1 . 4 5 4 . 2 9 4 2 Max Kills in Single Turn 4 | 1 1 2 3 1 . 3 1 2 . 1 4 3 1 Gunslinging . | . . . . . . . . . . . . . . Exploded 3 | . . 1 3 . . 3 . 2 . . 3 . . Melee 1 | . . . 1 1 . 1 1 . . 1 1 . . Uniques/NPCs Destroyed . | . . . . . . . . . . . . . . Combat | -11 -10 -10 -10 -8 -8 -6 -6 -6 -6 -5 -5 -5 -5 -------- Run | Yrd Mat Min Sub Rec Scr Fac Low Low Zio Pro Fac Ext Cet Hostile Shots Fired 802 | . 42 33 108 4 . 65 50 11 . 24 295 77 93 Missed 231 | . 9 10 40 2 . 16 18 1 . 3 89 14 29 Hits 571 | . 33 23 68 2 . 49 32 10 . 21 206 63 64 Melee 13 | . . . . . . 3 2 . . 7 . 1 . Projectile 558 | . 33 23 68 2 . 46 30 10 . 14 206 62 64 AOE 11 | . . . . . . . . . . . . 11 . Critical Strikes 37 | . . 1 1 . . 4 1 . . 3 9 8 10 Part Disruptions 2 | . . . . . . 1 . . . . 1 . . Damage Taken 11043 | . 382 369 969 33 . 1076 730 188 . 544 3276 1823 1653 Core 1632 | . 45 42 113 18 . 205 71 18 . 110 614 154 242 Absorbed by Shields 466 | . . . . . . . . . . . 440 26 . Ignored by Resistances 95 | . . . . . . . . . . . 95 . . Core Remaining (%) 54 | 100 . . . . 12 . . . . 52 . . . Volleys Fired 305 | 5 28 20 58 . . 3 . 4 . . 54 82 51 Largest 2 | 2 2 2 2 . . 1 . 1 . . 2 2 2 Hottest 272 | 70 70 63 73 . . 33 . 33 . . 144 272 109 Shots Fired 484 | 10 55 28 87 . . 3 . 4 . . 76 152 69 Gun 221 | 10 44 . 42 . . . . . . . 34 46 45 Cannon 184 | . 11 15 11 . . . . . . . 20 103 24 Launcher 79 | . . 13 34 . . 3 . 4 . . 22 3 . Special . | . . . . . . . . . . . . . . Kinetic 337 | 5 39 15 36 . . . . . . . 32 147 63 Thermal 68 | 5 16 . 17 . . . . . . . 22 2 6 Explosive 79 | . . 13 34 . . 3 . 4 . . 22 3 . Electromagnetic . | . . . . . . . . . . . . . . Robot Hit Streak 17 | 3 17 7 9 . . . . 2 . . 9 16 10 Robot Miss Streak 7 | 1 3 3 2 . . . . 2 . . 4 7 5 Penetration Max 1 | . . . . . . . . . . . 1 1 1 Secondary Targets 1 | . . . . . . . . . . . . . 1 Max Gunslinging Chain 1 | . . . . . . . . . . . . . 1 Shots Hit Robots 423 | 7 40 15 45 10 . 44 28 9 . 9 80 85 51 Core Hits 259 | 3 10 18 35 5 . 33 8 11 . 4 67 47 18 Critical Kills 12 | . . . . . . . . . . . . 9 3 Critical Parts Destroyed 11 | . . . . . . . . . . . . 6 5 Critical Strikes 34 | . . 2 . . . . . . . . 1 23 8 Burn 1 | . . . . . . . . . . . 1 . . Destroy 23 | . . . . . . . . . . . . 15 8 Blast 10 | . . 2 . . . . . . . . . 8 . Melee Attacks 241 | . . 3 34 11 . 76 35 7 . 12 63 . . Impact 11 | . . 3 6 2 . . . . . . . . . Slashing 230 | . . . 28 9 . 76 35 7 . 12 63 . . Piercing . | . . . . . . . . . . . . . . Sneak Attacks 31 | . . . . 6 . 9 6 7 . . 3 . . Combat Hostiles 2 | . . . . 1 . . . . . . 1 . . Follow-up Attacks 7 | . . . . 2 . 1 3 . . . 1 . . Damage Inflicted 17228 | 77 440 785 1920 612 . 2340 1316 868 . 304 4030 3223 1313 Guns 2773 | 77 309 . 371 . . . . . . . 542 669 805 Cannons 3076 | . 131 174 64 . . . . . . . . 2199 508 Explosions 4256 | . . 611 1090 . . 408 . 287 . . 1505 355 . Melee 7123 | . . . 395 612 . 1932 1316 581 . 304 1983 . . Ramming . | . . . . . . . . . . . . . . Kinetic 5050 | 15 303 174 312 . . . . . . . 183 2868 1195 Thermal 799 | 62 137 . 123 . . . . . . . 359 . 118 Explosive 4256 | . . 611 1090 . . 408 . 287 . . 1505 355 . Electromagnetic . | . . . . . . . . . . . . . . Impact 102 | . . . . 102 . . . . . . . . . Slashing 7021 | . . . 395 510 . 1932 1316 581 . 304 1983 . . Piercing . | . . . . . . . . . . . . . . Highest Corruption 7 | . . . . . . 7 7 7 7 . 5 7 7 Average Corruption 5 | . . . . . . 4 7 7 7 . 3 5 7 Corruption Purged . | . . . . . . . . . . . . . . Corruption Blocked . | . . . . . . . . . . . . . . Effects 148 | . . . . . . 23 14 17 2 . 8 61 23 Message Errors 40 | . . . . . . 7 8 2 . . 1 14 8 Matter Fused 38 | . . . . . . 5 3 2 1 . . 19 8 Heat Flow Errors 13 | . . . . . . 1 . 3 . . 2 4 3 Energy Discharges 20 | . . . . . . 2 1 7 . . 2 6 2 Parts Rejected 4 | . . . . . . 1 . . . . 1 1 1 Parts Fused 3 | . . . . . . 1 . . . . 1 1 . Data Loss (minor) 17 | . . . . . . 5 . 3 1 . 1 6 1 Data Loss (major) 3 | . . . . . . 1 . . . . . 2 . Misfires 5 | . . . . . . . . . . . . 5 . Alerts 2 | . . . . . . . 2 . . . . . . Weapon Failures 3 | . . . . . . . . . . . . 3 . Overload Shots 3 | . . . . . . . . . . . . 3 . Effects 1 | . . . . . . . . . . . . 1 . Short Circuit 1 | . . . . . . . . . . . . 1 . Overflow Damage 936 | . . 26 24 151 . 176 270 134 . 14 99 42 . Projectiles 48 | . . . 6 . . . . . . . . 42 . Explosions 81 | . . 26 18 . . . . . . . 37 . . Melee 807 | . . . . 151 . 176 270 134 . 14 62 . . Knockbacks 25 | . 2 2 . . . . . . . . . 21 . Impact . | . . . . . . . . . . . . . . Kinetic 25 | . 2 2 . . . . . . . . . 21 . Secondary . | . . . . . . . . . . . . . . Self-Inflicted Damage 259 | . . 38 136 . . . . 30 . . 12 43 . Shots 8 | . . 1 4 . . . . 1 . . 1 1 . Rammed . | . . . . . . . . . . . . . . Targets Rammed . | . . . . . . . . . . . . . . Kicked . | . . . . . . . . . . . . . . Crushed . | . . . . . . . . . . . . . . Highest Temperature 351 | 70 258 93 6 . . 93 . 239 . 13 225 351 279 Average Temperature 82 | 28 70 42 6 . . 51 . 99 . 6 67 93 90 Received Heat Transfer 2257 | . 213 126 219 . . 288 144 . . 162 746 350 9 Effects 4 | . 3 . . . . . . . . . . 1 . Interference 3 | . 3 . . . . . . . . . . . . Matter Decay 1 | . . . . . . . . . . . . 1 . Siege Activations . | . . . . . . . . . . . . . . Martial Activations . | . . . . . . . . . . . . . . Shielding Activations . | . . . . . . . . . . . . . . Robots Disrupted 1 | . . . . . . 1 . . . . . . . Combat Hostiles 1 | . . . . . . 1 . . . . . . . Robots Corrupted 1 | . . . . 1 . . . . . . . . . Combat Hostiles . | . . . . . . . . . . . . . . Parts Fried 1 | . . . . 1 . . . . . . . . . Impact Corruptions 1 | . . . . 1 . . . . . . . . . Robots Melted . | . . . . . . . . . . . . . . Combat Hostiles . | . . . . . . . . . . . . . . Parts Melted 2 | . . . . . . . . . . . 2 . . Heat Transferred 1846 | 185 407 . 275 . . . . . . . 794 . 185 Parts Sabotaged . | . . . . . . . . . . . . . . Parts Stolen . | . . . . . . . . . . . . . . Parts Stripped . | . . . . . . . . . . . . . . Power Chain Reactions . | . . . . . . . . . . . . . . Alert | -11 -10 -10 -10 -8 -8 -6 -6 -6 -6 -5 -5 -5 -5 ------- Run | Yrd Mat Min Sub Rec Scr Fac Low Low Zio Pro Fac Ext Cet Maximum Alert Level 4 | . . . . . . . . . . . 3 4 3 Low Security (%) 39 | 100 100 100 . 100 . 100 . . . . . . . Level 1 . | . . . . . . . . . . . . . . Level 2 35 | . . . . . . . . . . . 19 68 88 Level 3 19 | . . . . . . . . . . . 80 12 11 Level 4 5 | . . . . . . . . . . . . 18 . Level 5 . | . . . . . . . . . . . . . . High Security . | . . . . . . . . . . . . . . Max Security . | . . . . . . . . . . . . . . Peak Influence 1498 | 5 45 188 . 191 . 172 . . . . 1083 1498 799 Initial 900 | . . . . 171 . . . . . . 900 518 799 Average 471 | 1 8 132 . 75 . 68 . . . . 800 752 578 Influence Increases 6182 | 10 92 238 645 65 . 473 115 90 . 130 2053 2168 103 Destroy 0b10 Robot/C 2720 | . 60 120 220 40 . 300 100 80 . 40 620 1060 80 Destroy 0b10 Robot/NC 210 | 10 5 20 . 25 . 45 . . . . 50 50 5 Destroy Leader 366 | . 20 20 20 . . 52 . 10 . . 120 124 . Allied During Kill 759 | . . . . . . . . . . . 64 695 . Successful Hack 26 | . 7 . . . . 7 . . . . . 12 . Disable Machine 135 | . . . . . . 45 . . . . 30 60 . Destroy Structure 436 | . . 78 . . . 24 . . . . 164 152 18 Advance Influence 900 | . . . . . . . . . . . 900 . . Lose Combat Pursuer 630 | . . . 405 . . . 15 . . 90 105 15 . Influence Decreases 5762 | 10 90 102 426 422 . 383 205 90 . 130 994 1799 1111 Entered New Map 1465 | . . 2 73 186 . . 34 . . . . 541 629 Time Decay 2867 | 10 80 90 293 236 . 353 161 90 . 120 464 628 342 Search Patrol Dispatched 300 | . . . . . . . . . . . 300 . . Lost Part 520 | . 10 10 60 . . 30 10 . . 10 210 60 120 Lost Ally 460 | . . . . . . . . . . . 20 420 20 Purge Threat 150 | . . . . . . . . . . . . 150 . Squads Dispatched 33 | . 2 . . . . 11 . . . . 11 9 . Investigation 14 | . . . . . . 6 . . . . 5 3 . Extermination 4 | . . . . . . 2 . . . . 2 . . Reinforcement 10 | . 2 . . . . 3 . . . . 3 2 . Assault 5 | . . . . . . . . . . . 1 4 . Garrison . | . . . . . . . . . . . . . . Intercept . | . . . . . . . . . . . . . . Searches Triggered 2 | . . . . . . . . . . . 2 . . Construction Impeded 4 | . . . . . . 1 . . . . 2 1 . Haulers Reinforced . | . . . . . . . . . . . . . . Active Scanning Responses . | . . . . . . . . . . . . . . Cargo Convoy Interrupts . | . . . . . . . . . . . . . . Stealth | -11 -10 -10 -10 -8 -8 -6 -6 -6 -6 -5 -5 -5 -5 --------- Run | Yrd Mat Min Sub Rec Scr Fac Low Low Zio Pro Fac Ext Cet Distress Signals 7 | . 2 . . . . . . . . 2 1 1 1 Communications Jammed 11 | . . . . . . . . . . 1 10 . . Distress Signals 8 | . . . . . . . . . . . 8 . . Times Spotted 204 | . 9 5 32 1 . 19 6 4 . 11 41 67 9 Peak Tracking Total 13 | . 4 2 6 1 . 4 5 4 . 8 7 13 5 Tactical Retreats 16 | . . . 7 . . . 1 . . 3 4 1 . Traps | -11 -10 -10 -10 -8 -8 -6 -6 -6 -6 -5 -5 -5 -5 ------- Run | Yrd Mat Min Sub Rec Scr Fac Low Low Zio Pro Fac Ext Cet Traps Triggered 8 | . 2 . 2 . . 3 . . . . . 1 . Indirectly . | . . . . . . . . . . . . . . Trap Hack Attempts . | . . . . . . . . . . . . . . Triggered . | . . . . . . . . . . . . . . Disarmed . | . . . . . . . . . . . . . . Reprogrammed . | . . . . . . . . . . . . . . Reused . | . . . . . . . . . . . . . . Traps Extracted . | . . . . . . . . . . . . . . Installed 1 | . . . 1 . . . . . . . . . . Triggered . | . . . . . . . . . . . . . . Most Traps Carried 1 | . . . 1 . . . . . . . . . . Machines | -11 -10 -10 -10 -8 -8 -6 -6 -6 -6 -5 -5 -5 -5 ---------- Run | Yrd Mat Min Sub Rec Scr Fac Low Low Zio Pro Fac Ext Cet Machines Disabled 18 | . . 2 5 . . 3 . . . . 2 6 . Max in Single Turn 3 | . . 2 3 . . 2 . . . . . 1 . Garrison Access 1 | . . . . . . 1 . . . . . . . Machines Repaired . | . . . . . . . . . . . . . . Machines Dismantled . | . . . . . . . . . . . . . . Machines Sabotaged . | . . . . . . . . . . . . . . Overloaded Fab Kills . | . . . . . . . . . . . . . . Hacking | -11 -10 -10 -10 -8 -8 -6 -6 -6 -6 -5 -5 -5 -5 --------- Run | Yrd Mat Min Sub Rec Scr Fac Low Low Zio Pro Fac Ext Cet Machines Accessed 34 | . 1 . 2 2 5 9 . . . . 5 10 . Terminals 13 | . 1 . . . . 2 . . . . . 10 . Fabricators . | . . . . . . . . . . . . . . Repair Stations . | . . . . . . . . . . . . . . Recycling Units 13 | . . . . 2 . 6 . . . . 5 . . Scanalyzers . | . . . . . . . . . . . . . . Garrison Access 1 | . . . . . . 1 . . . . . . . Total Hacks 78 | . 2 . 3 6 17 22 . . . . 6 22 . Successful 43 | . 1 . 3 4 17 6 . . . . 5 7 . Failed 35 | . 1 . . 2 . 16 . . . . 1 15 . Catastrophic 7 | . . . . . . 3 . . . . . 4 . Database Lockouts . | . . . . . . . . . . . . . . Manual 30 | . . . . 4 . 14 . . . . 6 5 1 Terminals 28 | . 2 . . . . 4 . . . . . 22 . Fabricators . | . . . . . . . . . . . . . . Repair Stations . | . . . . . . . . . . . . . . Recycling Units 28 | . . . . 6 . 16 . . . . 6 . . Scanalyzers . | . . . . . . . . . . . . . . Garrison Access 2 | . . . . . . 2 . . . . . . . Terminal Hacks 29 | . 1 . 3 . 17 1 . . . . . 7 . Record 18 | . . . 2 . 16 . . . . . . . . Part Schematic 1 | . . . . . . 1 . . . . . . . Robot Schematic 1 | . . . . . . . . . . . . 1 . Open Door 4 | . . . . . 1 . . . . . . 3 . Branch Access Points 1 | . 1 . . . . . . . . . . . . Alert Level 1 | . . . . . . . . . . . . 1 . Unreport Threat 1 | . . . . . . . . . . . . 1 . Zone Layout 1 | . . . . . . . . . . . . 1 . Proto ID Catalog 1 | . . . 1 . . . . . . . . . . Fabricator Hacks . | . . . . . . . . . . . . . . Repair Station Hacks . | . . . . . . . . . . . . . . Recycling Unit Hacks 2 | . . . . 1 . 1 . . . . . . . Retrieve Components 2 | . . . . 1 . 1 . . . . . . . Scanalyzer . | . . . . . . . . . . . . . . Garrison Access Hacks 1 | . . . . . . 1 . . . . . . . Seal Access 1 | . . . . . . 1 . . . . . . . Unauthorized Hacks 11 | . . . . 3 . 3 . . . . 5 . . Terminals . | . . . . . . . . . . . . . . Fabricators . | . . . . . . . . . . . . . . Repair Stations 8 | . . . . . . 3 . . . . 5 . . Recycling Units 3 | . . . . 3 . . . . . . . . . Monitor 1 | . . . . 1 . . . . . . . . . Reject 1 | . . . . 1 . . . . . . . . . Mask 1 | . . . . 1 . . . . . . . . . Fedlink 7 | . . . . . . 3 . . . . 4 . . Scrapoids 1 | . . . . . . . . . . . 1 . . Scanalyzers . | . . . . . . . . . . . . . . Garrison Access . | . . . . . . . . . . . . . . Data Cores Recovered . | . . . . . . . . . . . . . . Used . | . . . . . . . . . . . . . . Hacking Detections 18 | . 1 . . 2 . 6 . . . . 1 8 . Full Trace Events 5 | . . . . . . 2 . . . . . 3 . Feedback Events . | . . . . . . . . . . . . . . Feedback Blocked . | . . . . . . . . . . . . . . Robot Schematics Acquired 1 | . . . . . . . . . . . . 1 . Robots Built . | . . . . . . . . . . . . . . Authchips . | . . . . . . . . . . . . . . Time . | . . . . . . . . . . . . . . Total Robot Build Rating . | . . . . . . . . . . . . . . Part Schematics Acquired 1 | . . . . . . 1 . . . . . . . Parts Built . | . . . . . . . . . . . . . . Authchips . | . . . . . . . . . . . . . . Time . | . . . . . . . . . . . . . . Total Part Build Rating . | . . . . . . . . . . . . . . Parts Repaired . | . . . . . . . . . . . . . . Time . | . . . . . . . . . . . . . . Parts Recycled . | . . . . . . . . . . . . . . Recycled Matter . | . . . . . . . . . . . . . . Retrieved Matter . | . . . . . . . . . . . . . . Retrieved Components 2 | . . . . . . 2 . . . . . . . Parts Scanalyzed . | . . . . . . . . . . . . . . Part Schematics Acquired . | . . . . . . . . . . . . . . Parts Damaged . | . . . . . . . . . . . . . . Bothacking | -11 -10 -10 -10 -8 -8 -6 -6 -6 -6 -5 -5 -5 -5 ------------ Run | Yrd Mat Min Sub Rec Scr Fac Low Low Zio Pro Fac Ext Cet Used RIF Installer . | . . . . . . . . . . . . . . Robots Hacked . | . . . . . . . . . . . . . . Non-combat . | . . . . . . . . . . . . . . Combat . | . . . . . . . . . . . . . . Robot Hacks Applied . | . . . . . . . . . . . . . . Relay Couplers Released . | . . . . . . . . . . . . . . Fabnet Peak Effective % . | . . . . . . . . . . . . . . Robots Rewired 23 | . . . . . . . . . . . . 23 . Allies Hacked . | . . . . . . . . . . . . . . Hacks Repelled . | . . . . . . . . . . . . . . Allies | -11 -10 -10 -10 -8 -8 -6 -6 -6 -6 -5 -5 -5 -5 -------- Run | Yrd Mat Min Sub Rec Scr Fac Low Low Zio Pro Fac Ext Cet Total Allies 37 | . . . . . . . . . . . 5 27 5 Largest Group 16 | . . . . . . . . . . . 5 16 5 Highest-Rated Group 480 | . . . . . . . . . . . 238 480 480 Highest-Rated Ally 159 | . . . . . . . . . . . 50 159 146 Total Orders 4 | . . . . . . . . . . . . . 4 STAY 1 | . . . . . . . . . . . . . 1 ROAM 1 | . . . . . . . . . . . . . 1 FOLLOW 1 | . . . . . . . . . . . . . 1 EXPLORE 1 | . . . . . . . . . . . . . 1 Ally Attacks 370 | . . . . . . . . . . . 41 326 3 Total Damage 7385 | . . . . . . . . . . . 1100 6199 86 Kills 53 | . . . . . . . . . . . 6 47 . Allies Corrupted . | . . . . . . . . . . . . . . Allies Melted . | . . . . . . . . . . . . . . Intel | -11 -10 -10 -10 -8 -8 -6 -6 -6 -6 -5 -5 -5 -5 ------- Run | Yrd Mat Min Sub Rec Scr Fac Low Low Zio Pro Fac Ext Cet Active Infowar (turns) 6233 | 32 364 180 1320 . . 1351 512 580 225 477 616 . 576 Optics 1205 | . . . 245 . . 384 . . . . . . 576 Sensors 2609 | . . . . . . 1153 512 580 225 139 . . . Seismic 1651 | 32 364 180 1075 . . . . . . . . . . Machine Analysis 404 | . . . . . . . . . . . 404 . . Jamming 2002 | . . . . . . 1039 3 . . 388 572 . . Robot Analysis Total . | . . . . . . . . . . . . . . Derelict Logs Recovered 11 | . . 1 3 . 4 . 2 1 . . . . . Drone Launches 3 | . . . . . . . . . . . . . 3 Drone Recoveries 1 | . . . . . . . . . . . . . 1 Exploration | -11 -10 -10 -10 -8 -8 -6 -6 -6 -6 -5 -5 -5 -5 ------------- Run | Yrd Mat Min Sub Rec Scr Fac Low Low Zio Pro Fac Ext Cet Turns Passed 14272 | 124 364 180 2237 588 3493 1386 512 580 225 477 1164 2164 778 Spaces Moved 8131 | 60 184 119 1705 487 1594 832 350 439 188 345 629 933 266 Core 181 | 2 . . 167 . . . . . . . . . 12 Treads 1333 | 58 116 . . . 917 . . . . . . 1 241 Legs 4048 | . . . . . 577 598 350 439 188 345 629 909 13 Wheels 2569 | . 68 119 1538 487 100 234 . . . . . 23 . Hover . | . . . . . . . . . . . . . . Flight . | . . . . . . . . . . . . . . Fastest Speed 50 | 50 95 95 90 110 120 120 120 120 120 120 120 90 50 Average Speed 147 | 157 135 97 112 115 217 120 120 120 120 120 121 178 214 Slowest Speed 400 | 160 160 110 400 120 240 190 120 120 120 120 260 320 240 Overloaded Moves . | . . . . . . . . . . . . . . Propulsion Burnouts . | . . . . . . . . . . . . . . Robots Hopped . | . . . . . . . . . . . . . . Potential Cave-ins . | . . . . . . . . . . . . . . Cave-ins Triggered . | . . . . . . . . . . . . . . Exploration Rate (%) 47 | 7 42 35 74 68 87 22 48 68 12 45 21 85 55 Regions Visited 13 Branch Regions 10 Pre-discovered Areas 7 | . . 1 2 . 1 1 2 . . . . . . Known Exits Taken 7 | . 1 . . . . 1 1 1 1 1 1 . . Unknown Exits Taken 6 | 1 . 1 1 1 1 . . . . . . 1 . Scrap Searched 17 | . . . 7 . 3 . 2 2 . 3 . . . Spaces Dug 107 | . . . 43 . . 23 1 . . . 30 10 . Terrain Destroyed 519 | . . 93 229 . . 24 1 17 . . 78 70 7 Melee 29 | . . . 2 . . 20 1 . . . 6 . . Projectile 74 | . . . . . . . . . . . 24 43 7 AOE 416 | . . 93 227 . . 4 . 17 . . 48 27 . Terrain Rammed . | . . . . . . . . . . . . . . Walls Destroyed . | . . . . . . . . . . . . . . Machines Disabled . | . . . . . . . . . . . . . . Actions | -11 -10 -10 -10 -8 -8 -6 -6 -6 -6 -5 -5 -5 -5 --------- Run | Yrd Mat Min Sub Rec Scr Fac Low Low Zio Pro Fac Ext Cet Total 9585 | 77 248 149 1890 501 1625 1103 397 477 187 392 854 1282 403 Wait 298 | 1 12 . 30 . 1 105 . 24 . 24 35 21 45 Move 8118 | 59 183 118 1704 486 1593 831 349 438 187 344 628 932 266 Hop . | . . . . . . . . . . . . . . Pick Up 101 | 5 7 2 16 1 12 13 5 . . 2 16 10 12 Fast Attach 110 | 7 8 . 11 1 5 21 2 2 . 2 24 15 12 Attach 39 | . 2 1 5 1 . 8 1 1 . 1 8 4 7 Detach 18 | . 1 . 2 1 1 5 . 1 . . 4 1 2 Swap 58 | . . 3 14 1 1 6 2 . . 2 11 16 2 Drop 102 | . 7 2 14 1 12 18 6 . . 4 12 20 6 Fire 305 | 5 28 20 58 . . 3 . 4 . . 54 82 51 Melee 234 | . . 3 34 9 . 75 32 7 . 12 62 . . Ram . | . . . . . . . . . . . . . . Kick . | . . . . . . . . . . . . . . Crush . | . . . . . . . . . . . . . . Escape Stasis 5 | . . . . . . . . . . . . 5 . Rewire 194 | . . . . . . 18 . . . . . 176 . Trap 1 | . . . 1 . . . . . . . . . . Miscellaneous 2 | . . . 1 . . . . . . 1 . . . Route ------- -11/Scrapyard -10/Materials (discovered 2 exits: *Min x2) -10/Mines (discovered 2 exits: [*Mat] / *Sub) -10/Subcaves (discovered 2 exits: [*Mat] / *Rec) -8/Recycling (discovered 2 exits: *Fac / *Scr) -8/Scraptown (discovered 2 exits: *Fac x2) -6/Factory -6/Lower Caves (discovered 2 exits: *Low / *Zio) -6/Lower Caves -6/Zion -5/Proximity Caves -5/Factory (discovered 2 exits: [*Upp] / *Ext) -5/Extension (discovered 3 exits: [*Fac x2] / *Cet) -5/Cetus (discovered 1 exit: [*Arc]) History --------- Turn | Location | Event 2 | -11/Scrapyard | Met Revision 17 40 | -11/Scrapyard | Discovered new exit (range 15) 125 | -11/Scrapyard | Entered Materials 318 | -10/Materials | Build established: Mutant 435 | -10/Materials | Identified exit to Mines 489 | -10/Materials | Entered Mines 514 | -10/Mines | Learned location of Storage (-8) 604 | -10/Mines | Discovered new exit (range 11) 667 | -10/Mines | Discovered new exit (range 3) 669 | -10/Mines | Entered Subcaves 721 | -10/Subcaves | Shifting Twisted Machinery released Sub. Machine Gun 729 | -10/Subcaves | Shifting Twisted Machinery released Battle Rifle 1009 | -10/Subcaves | Shifting Twisted Machinery released Mak. Sword 1215 | -10/Subcaves | Shifting Twisted Machinery released Barrage Gun 1500 | -10/Subcaves | Core integrity fell below 50% 1634 | -10/Subcaves | Learned Materials emergency access door positions 1655 | -10/Subcaves | Visited Clippyterm 1658 | -10/Subcaves | Learned Factory emergency access door positions 1720 | -10/Subcaves | Shifting Twisted Machinery released Sub. Beam Cannon 1734 | -10/Subcaves | Shifting Twisted Machinery released Mak. Light Armor Plating 1968 | -10/Subcaves | Visited 4L-MR0's lab 1978 | -10/Subcaves | Found Meta Core 1980 | -10/Subcaves | Attached Meta Core, gained temporary slots: Propulsion, Utility, Weapon 2054 | -10/Subcaves | Discovered new exit (range 13) 2248 | -10/Subcaves | A swath of the cavern ceiling suddenly collapsed 2301 | -10/Subcaves | Discovered new exit (range 8) 2343 | -10/Subcaves | Lost 3 parts (1n1u1w) 2906 | -10/Subcaves | Entered Recycling 3212 | -8/Recycling | Build established: Subdweller-Mutant 3392 | -8/Recycling | Discovered new exit (range 5) 3394 | -8/Recycling | Core integrity fell below 20% 3466 | -8/Recycling | Scanned before Scraplab entrance 3482 | -8/Recycling | Entered Scraplab 3492 | -8/Recycling | Discovered new exit (range 2) 3494 | -8/Recycling | Entered Scraptown 3811 | -8/Scraptown | Discovered new exit (range 11) 3931 | -8/Scraptown | Scanned Subdweller tech in exchange for log data 3936 | -8/Scraptown | Learned location of Warlord (-5) 3941 | -8/Scraptown | Learned Research terminal intel 3943 | -8/Scraptown | Learned Research emergency access door positions 4204 | -8/Scraptown | Heard Great Nut preacher, LISTEN AND RECITE! 4386 | -8/Scraptown | Build established: Mutant 4579 | -8/Scraptown | Visited Shadow of the Wyrm 4598 | -8/Scraptown | Visited Cyclists 4639 | -8/Scraptown | Visited The Evicted 4736 | -8/Scraptown | Visited Fellowship of the Rings 4801 | -8/Scraptown | Visited Cave Peace 4894 | -8/Scraptown | Visited UFD Registry 4894 | -8/Scraptown | Registered with UFD as "Scraprigger" 4962 | -8/Scraptown | Entered Cyclist Reading Room 5072 | -8/Scraptown | Visited CPS Storage 5168 | -8/Scraptown | Visited Sword Containment 5310 | -8/Scraptown | Visited Derelict Rescue Squad 5344 | -8/Scraptown | Found DRS Beacon 5400 | -8/Scraptown | Visited Chapter 10 5450 | -8/Scraptown | Visited Scrapoid Pod Storage 5501 | -8/Scraptown | Visited Junk Repository 5570 | -8/Scraptown | Visited Cartography Club 5677 | -8/Scraptown | Found Surveybot 17 Chip 5752 | -8/Scraptown | Visited Supply Room 5805 | -8/Scraptown | Visited Curators Association 5879 | -8/Scraptown | Delivered Scrap Shield to a Scientist 6914 | -8/Scraptown | Met Optimus 6914 | -8/Scraptown | Accepted into 0bPrime 6981 | -8/Scraptown | Discovered new exit (range 5) 6987 | -8/Scraptown | Entered Factory 6987 | -6/Factory | Evolved 8 slots: Power x1, Propulsion x2, Utility x5 7409 | -6/Factory | Lost 3 parts (1n2u) 7460 | -6/Factory | Loaded intel: 8 recycling unit locations 7521 | -6/Factory | Learned location of Protoforge (-3) 7716 | -6/Factory | Build established: Scavenger-Mutant 8251 | -6/Factory | Discovered new exit (range 9) 8259 | -6/Factory | Identified exit to Lower Caves 8288 | -6/Factory | Build established: Mutant 8373 | -6/Factory | Entered Lower Caves 8375 | -6/Lower Caves | UFD Scientist delivered a prototype 8378 | -6/Lower Caves | Found Prototype Protection 8378 | -6/Lower Caves | Identified Enh. Scrap Shield 8447 | -6/Lower Caves | Attracted the attention of an 0b10 outpost 8592 | -6/Lower Caves | Encountered a Warlord checkpoint 8670 | -6/Lower Caves | A Derelict revealed a hidden shortcut to a safe place 8675 | -6/Lower Caves | Learned location of Zion (-6) 8678 | -6/Lower Caves | Identified exit to Zion 8727 | -6/Lower Caves | Learned location of Extension (-5) 8872 | -6/Lower Caves | Discovered new exit (range 12) 8884 | -6/Lower Caves | Identified exit to Lower Caves 8885 | -6/Lower Caves | Entered another Lower Caves area 8924 | -6/Lower Caves | Encountered a Warlord checkpoint 9040 | -6/Lower Caves | Learned 8 Factory zone layouts 9448 | -6/Lower Caves | Discovered exit to Zion (range 8) 9465 | -6/Lower Caves | Entered Zion 9499 | -6/Zion | Given A8's code to call for help 9512 | -6/Zion | System corruption cleaned by Quarantine Array 9531 | -6/Zion | Discovered new exit (range 15) 9637 | -6/Zion | Identified exit to Proximity Caves 9649 | -6/Zion | Build established: Derelict-Mutant 9690 | -6/Zion | Entered Proximity Caves 9763 | -5/Proximity Caves | Spotter reported a threat 9766 | -5/Proximity Caves | Spotter reported a threat 9819 | -5/Proximity Caves | Spotter reported a threat 9860 | -5/Proximity Caves | Activated DRS Beacon 9872 | -5/Proximity Caves | Spotter reported a threat 9925 | -5/Proximity Caves | Spotter reported a threat 9934 | -5/Proximity Caves | Spotter reported a threat 10030 | -5/Proximity Caves | Spotter reported a threat 10145 | -5/Proximity Caves | Discovered new exit (range 11) 10164 | -5/Proximity Caves | Identified exit to Factory 10167 | -5/Proximity Caves | Entered Factory 10167 | -5/Factory | Evolved 2 slots: Propulsion x1, Utility x1 10168 | -5/Factory | Identified exit to Extension 10392 | -5/Factory | Found Prototype Processor 10401 | -5/Factory | Loaded intel: 8 recycling unit locations 10467 | -5/Factory | Search patrols dispatched 10569 | -5/Factory | Discovered new exit (range 11) 10767 | -5/Factory | Search patrols dispatched 10806 | -5/Factory | Core integrity fell below 50% 10859 | -5/Factory | Lost 18 parts (3p8n6u1w) 10996 | -5/Factory | Destroyed 9 combat bots 11067 | -5/Factory | First assault squad dispatched 11082 | -5/Factory | Build established: Scavenger-Mutant 11122 | -5/Factory | Scrapoids reinforcements arrived? 11331 | -5/Factory | Entered Extension 11331 | -5/Extension | Accompanied by 2 allies 11812 | -5/Extension | Build established: Commander-Mutant 11995 | -5/Extension | Rescued a captive Derelict 12249 | -5/Extension | Rescued a captive Derelict 12705 | -5/Extension | Spotted B-75 Beast 12720 | -5/Extension | Spotted B-75 Beast 12725 | -5/Extension | Destroyed B-75 Beast 12748 | -5/Extension | Destroyed B-75 Beast 12756 | -5/Extension | Disrupted transfer network 12778 | -5/Extension | Lost 8 allies 12816 | -5/Extension | Discovered new exit (range 3) 12882 | -5/Extension | Lost 3 allies 13031 | -5/Extension | Build established: Scavenger-Mutant 13131 | -5/Extension | First assault squad dispatched 13159 | -5/Extension | Rescued a captive Derelict 13216 | -5/Extension | Lost 10 allies 13360 | -5/Extension | Rescued A7 13470 | -5/Extension | Discovered new exit (range 13) 13472 | -5/Extension | Discovered new exit (range 10) 13495 | -5/Extension | Entered Cetus 13495 | -5/Cetus | Accompanied by 1 ally (A7) 13500 | -5/Cetus | Acquired a Cetus Manufacturing Module code from A7 13510 | -5/Cetus | Lost 4 allies 13520 | -5/Cetus | Lost 3 parts (2n1u) 13521 | -5/Cetus | Spotted Cetus Guard 13521 | -5/Cetus | Spotted Cetus Guard 13526 | -5/Cetus | Spotted Cetus Guard 13532 | -5/Cetus | Core integrity fell below 20% 13563 | -5/Cetus | Spotted Cetus Guard 13569 | -5/Cetus | Destroyed Cetus Guard 13578 | -5/Cetus | Destroyed Cetus Guard 13617 | -5/Cetus | Destroyed Cetus Guard 13632 | -5/Cetus | Lost 12 parts (1p6n2u3w) 13647 | -5/Cetus | Destroyed Cetus Guard 13652 | -5/Cetus | Extracted ID and sensor layout for unrecognized location from A7's data core 13921 | -5/Cetus | Started Cetus Manufacturing Module 13946 | -5/Cetus | Manufactured an Enhanced Grunt 13971 | -5/Cetus | Manufactured an Enhanced Grunt 13996 | -5/Cetus | Manufactured an Enhanced Grunt 14021 | -5/Cetus | Manufactured an Enhanced Grunt 14046 | -5/Cetus | Manufactured an Enhanced Grunt 14109 | -5/Cetus | Discovered new exit (range 17) 14245 | -5/Cetus | Security sweep announced 14273 | -5/Cetus | Destroyed by S-27 Virus with Autogun Last Messages --------------- 14046_ A cannon-toting Grunt-like robot marches out of the Cetus Manufacturing Module. Cetus Manufacturing Module falls silent. 14062_ System corrupted: Matter fused (-7). 14079_ %|XT8VF>IKPH/ZYBZNUYO/SZ 14089_ Connecting with Cetus Terminal... 14089_ Dropped Adv. Drone Bay. 14105_ 5>INJCXLJSEFVZO4/T3ZFASSWTLH,UCFQC 14109_ EXIT=FOUND 14132_ System corrupted: Energy discharge (-144). 14171_ System corrupted: Matter fused (-8). 14197_ N U>QMQE/&&BSOWTOS#I 14236_ System corrupted: Heat flow error (+172). 14245_ ALERT: Security sweep of Cetus area. All non-essential units disperse. 14256_ System corrupted: Matter fused (-10). 14272_ C-30 ARC bursts open, deploying its payload. 14272_ S-27 Virus unfolds itself. Map ----- +----------------------------------------------------+ | ?????????????????????????# #?????????????? | | ?????????????????????????# #?????????????? | | ?????????????????????????# #?????????????? | | ?????????????????????????# #?????????????? | | ?????????????????????????# #?????????????? | | ?????????????????????????# #?????????????? | | ?????????????????????????# #?????????????? | | ?????????????????????????# #?????????????? | | ?????????????????????????# #?????????????? | | ?????????????????????????# #?????????????? | | ?????????????????????????# #?????????????? | | ?????????????????????????# #?????????????? | | ?????????????????????????# #?????????????? | | ?????????????????????????# #?????????????? | | ?????????????????????????# #?????????????? | | #####????????????????????# #?????????????? | | " """""##????????????????# #?????????????? | | """ " #""???????????????# #?????????????? | | """""""#"######??????????# #?????????????? | | " """""#""""""#??????????# s #?????????????? | | """""""#" ""#??????????# ss#?????????????? | | " """#T ""#??????????#ss #?????????????? | | """ "#" ""#??????????# #?????????????? | | ############ ###########???? | | + g #???? | | + g @ < #???? | | + #???? | | ! ##########################???? | | """"""""#T #????????????????????????????? | | ###########"""#????????????????????????????? | | ???????????????????????????????????????????? | | ???????????????????????????????????????????? | | ???????????????????????????????????????????? | | ???????????????????????????????????????????? | | ???????????????????????????????????????????? | | ???????????????????????????????????????????? | | ???????????????????????????????????????????? | | ???????????????????????????????????????????? | | ???????????????????????????????????????????? | | ???????????????????????????????????????????? | | ???????????????????????????????????????????? | | ???????????????????????????????????????????? | | ???????????????????????????????????????????? | | ???????????????????????????????????????????? | | ???????????????????????????????????????????? | | ???????????????????????????????????????????? | | ???????????????????????????????????????????? | | ???????????????????????????????????????????? | | ???????????????????????????????????????????? | | ???????????????????????????????????????????? | +----------------------------------------------------+ Best States ------------- Heat Dissipation 71 Energy Generation 45 Energy Capacity 1025 Matter Stores 300 Matter Capacity 300 Sight Range 22 Robot Scan Range 15 Terrain Scan Density 10 Jamming Range 14 Power Amplification 20 Armor Coverage 800 Resistance: KI 25 Weapon Shielding 33 Evasion (%) 65 Targeting Accuracy 8 Melee Accuracy 8 Target Analysis 6 Core Analysis 6 Recoil Reduction 2 Kinecelleration 40 Force Boost 20 Salvage Targeting 4 Offensive Hacking 10 Item Schematics ----------------- Imp. Hacking Suite | -6/Factory | Hacked Robot Schematics ------------------ R-06 Scavenger | -5/Extension | Hacked Fabricated ------------ Nothing Repaired ---------- Nothing Alien Tech Used ----------------- None Achievements -------------- None Challenges ------------ None Game ------ Seed ZioniteGlidesysRecalibrator Manual? 0 Play Time 02:23:05 Cumulative 139.1 hours Start 2025.05.07 @ 21:32:38 End 2025.05.08 @ 00:12:48 Sessions 1 Manual Loads 0 Difficulty Rogue Special Mode None Game No. 82 Rogue 74 Adventurer 8 Explorer 0 Win Type - Total 2 Types 2/0/0/0/0/0/0/0/0/0 Lore% 59 Gallery% 61 Achievement% 55 Wizard Run 0 Options --------- Layout 2 ASCII 0 Keyboard 1 Movement Numpad Keybinds 1 Fullscreen 1 Font 48/Smallcaps Map View 50x44 Zoom Use 0% Tactical HUD 1 Map Filters NONE Filters NONE Steam 1 RUN: da9a43d7-c59d-4f2f-a8e1-279a580c56b1